[Event "Titled Tuesday Blitz January 31 Late 2023"]
[White "Riehle, Marco"]
[Black "Terry, Renato"]
[WhiteFideId "12904392"]
[BlackFideId "3803457"]
[WhiteElo "2368"]
[BlackElo "2520"]
[Result "0-1"]
[Round "06"]
[TimeControl "180+2"]
[Date "2023.01.31"]
[WhiteClock "0:00:35"]
[BlackClock "0:00:17"]

1. e4 {[%clk 0:03:00]}  e6 {[%clk 0:02:58]} 2. c4 {[%clk 0:03:00]}  d5 {[%clk 0:02:52]} 3. cxd5 {[%clk 0:03:01]}  exd5 {[%clk 0:02:52]} 4. Qb3 {[%clk 0:03:01]}  Bc5 {[%clk 0:02:42]} 5. Nc3 {[%clk 0:02:59]}  Ne7 {[%clk 0:02:40]} 6. exd5 {[%clk 0:02:49]}  O-O {[%clk 0:02:38]} 7. Nf3 {[%clk 0:02:50]}  Nf5 {[%clk 0:02:24]} 8. Be2 {[%clk 0:02:49]}  Nd7 {[%clk 0:02:24]} 9. O-O {[%clk 0:02:46]}  Nf6 {[%clk 0:02:21]} 10. d3 {[%clk 0:02:43]}  h6 {[%clk 0:02:16]} 11. Ne4 {[%clk 0:02:36]}  Bb6 {[%clk 0:02:10]} 12. Nxf6+ {[%clk 0:02:36]}  Qxf6 {[%clk 0:02:10]} 13. Bd2 {[%clk 0:02:36]}  Rd8 {[%clk 0:01:59]} 14. Rfe1 {[%clk 0:02:31]}  Nd4 {[%clk 0:01:46]} 15. Nxd4 {[%clk 0:02:29]}  Bxd4 {[%clk 0:01:46]} 16. Bf3 {[%clk 0:02:27]}  Bxb2 {[%clk 0:01:36]} 17. Rab1 {[%clk 0:02:27]}  Be5 {[%clk 0:01:36]} 18. Qa4 {[%clk 0:01:46]}  Bd7 {[%clk 0:01:16]} 19. Qc4 {[%clk 0:01:46]}  b6 {[%clk 0:01:14]} 20. d6 {[%clk 0:01:42]}  c6 {[%clk 0:01:14]} 21. Re4 {[%clk 0:01:31]}  Qxd6 {[%clk 0:01:12]} 22. Rbe1 {[%clk 0:01:29]}  Be6 {[%clk 0:01:09]} 23. Qc2 {[%clk 0:01:20]}  Bxh2+ {[%clk 0:01:05]} 24. Kh1 {[%clk 0:01:20]}  Qxd3 {[%clk 0:01:05]} 25. Qxd3 {[%clk 0:01:18]}  Rxd3 {[%clk 0:01:06]} 26. Bxh6 {[%clk 0:01:15]}  gxh6 {[%clk 0:01:05]} 27. Kxh2 {[%clk 0:01:13]}  Kg7 {[%clk 0:00:52]} 28. a4 {[%clk 0:01:07]}  Rad8 {[%clk 0:00:50]} 29. Bg4 {[%clk 0:01:03]}  Bxg4 {[%clk 0:00:43]} 30. Rxg4+ {[%clk 0:01:04]}  Kf8 {[%clk 0:00:44]} 31. Ree4 {[%clk 0:01:02]}  R3d5 {[%clk 0:00:41]} 32. Rh4 {[%clk 0:01:02]}  R8d6 {[%clk 0:00:41]} 33. f3 {[%clk 0:00:58]}  a5 {[%clk 0:00:41]} 34. Kg3 {[%clk 0:00:56]}  b5 {[%clk 0:00:41]} 35. axb5 {[%clk 0:00:56]}  cxb5 {[%clk 0:00:42]} 36. Re1 {[%clk 0:00:55]}  Rg5+ {[%clk 0:00:38]} 37. Kh3 {[%clk 0:00:55]}  b4 {[%clk 0:00:37]} 38. Rc1 {[%clk 0:00:54]}  Rb6 {[%clk 0:00:35]} 39. Rc7 {[%clk 0:00:53]}  Rf5 {[%clk 0:00:24]} 40. Rc8+ {[%clk 0:00:43]}  Kg7 {[%clk 0:00:23]} 41. Rg4+ {[%clk 0:00:44]}  Rg5 {[%clk 0:00:24]} 42. Rd4 {[%clk 0:00:42]}  b3 {[%clk 0:00:22]} 43. f4 {[%clk 0:00:42]}  Rgb5 {[%clk 0:00:20]} 44. Rd1 {[%clk 0:00:40]}  b2 {[%clk 0:00:20]} 45. Rb1 {[%clk 0:00:40]}  a4 {[%clk 0:00:19]} 46. Ra8 {[%clk 0:00:40]}  Rb3+ {[%clk 0:00:19]} 47. Kh4 {[%clk 0:00:39]}  a3 {[%clk 0:00:20]} 48. g4 {[%clk 0:00:40]}  Rc3 {[%clk 0:00:20]} 49. g5 {[%clk 0:00:37]}  hxg5+ {[%clk 0:00:19]} 50. fxg5 {[%clk 0:00:36]}  Rc1 {[%clk 0:00:19]} 51. Rxb2 {[%clk 0:00:34]}  axb2 {[%clk 0:00:19]} 52. g6 {[%clk 0:00:35]}  b1=Q {[%clk 0:00:18]} 53. gxf7 {[%clk 0:00:35]}  Rc4+ {[%clk 0:00:17]} 0-1


[Site "https://www.chess.com"]

[Event "Titled Tuesday Blitz January 31 Late 2023"]
[White "Fernandez Guillen, Ernesto J."]
[Black "Dardha, Daniel"]
[WhiteFideId "3512428"]
[BlackFideId "240990"]
[WhiteElo "2477"]
[BlackElo "2631"]
[Result "1/2-1/2"]
[Round "06"]
[TimeControl "180+2"]
[Date "2023.01.31"]
[WhiteClock "0:00:04"]
[BlackClock "0:00:05"]

1. e4 {[%clk 0:03:00]}  c5 {[%clk 0:02:56]} 2. Nf3 {[%clk 0:02:59]}  d6 {[%clk 0:02:55]} 3. d4 {[%clk 0:02:59]}  cxd4 {[%clk 0:02:56]} 4. Nxd4 {[%clk 0:02:59]}  Nf6 {[%clk 0:02:56]} 5. Nc3 {[%clk 0:03:00]}  Nc6 {[%clk 0:02:56]} 6. Bc4 {[%clk 0:03:00]}  Qb6 {[%clk 0:02:55]} 7. Ndb5 {[%clk 0:02:59]}  a6 {[%clk 0:02:51]} 8. Be3 {[%clk 0:03:00]}  Qa5 {[%clk 0:02:51]} 9. Nd4 {[%clk 0:03:01]}  Nxe4 {[%clk 0:02:42]} 10. Qf3 {[%clk 0:02:27]}  f5 {[%clk 0:01:59]} 11. Nxc6 {[%clk 0:02:21]}  bxc6 {[%clk 0:01:59]} 12. O-O-O {[%clk 0:02:19]}  d5 {[%clk 0:01:34]} 13. Nxe4 {[%clk 0:02:17]}  fxe4 {[%clk 0:01:11]} 14. Qh5+ {[%clk 0:02:16]}  g6 {[%clk 0:01:12]} 15. Qe5 {[%clk 0:02:16]}  Rg8 {[%clk 0:01:12]} 16. Rxd5 {[%clk 0:02:11]}  cxd5 {[%clk 0:01:06]} 17. Bxd5 {[%clk 0:02:12]}  Qb5 {[%clk 0:00:44]} 18. Qxe4 {[%clk 0:01:46]}  Bf5 {[%clk 0:00:38]} 19. Bc6+ {[%clk 0:01:34]}  Kf7 {[%clk 0:00:38]} 20. Qd5+ {[%clk 0:01:33]}  Qxd5 {[%clk 0:00:23]} 21. Bxd5+ {[%clk 0:01:34]}  Be6 {[%clk 0:00:24]} 22. Bxa8 {[%clk 0:01:33]}  Bg7 {[%clk 0:00:25]} 23. Be4 {[%clk 0:01:31]}  Rb8 {[%clk 0:00:23]} 24. b3 {[%clk 0:01:29]}  a5 {[%clk 0:00:20]} 25. Rd1 {[%clk 0:01:20]}  Kf8 {[%clk 0:00:19]} 26. c4 {[%clk 0:01:12]}  a4 {[%clk 0:00:18]} 27. Kc2 {[%clk 0:01:12]}  Rc8 {[%clk 0:00:09]} 28. f3 {[%clk 0:01:09]}  Bf6 {[%clk 0:00:06]} 29. Bd4 {[%clk 0:01:07]}  Bg5 {[%clk 0:00:04]} 30. g3 {[%clk 0:01:03]}  Kf7 {[%clk 0:00:04]} 31. f4 {[%clk 0:01:02]}  Bh6 {[%clk 0:00:05]} 32. Be5 {[%clk 0:01:02]}  axb3+ {[%clk 0:00:04]} 33. axb3 {[%clk 0:01:02]}  Bf8 {[%clk 0:00:04]} 34. Kc3 {[%clk 0:01:00]}  h6 {[%clk 0:00:03]} 35. Bd5 {[%clk 0:01:00]}  g5 {[%clk 0:00:02]} 36. f5 {[%clk 0:00:55]}  Bxd5 {[%clk 0:00:02]} 37. Rxd5 {[%clk 0:00:56]}  Ra8 {[%clk 0:00:02]} 38. g4 {[%clk 0:00:55]}  Ra2 {[%clk 0:00:02]} 39. c5 {[%clk 0:00:53]}  e6 {[%clk 0:00:02]} 40. Rd7+ {[%clk 0:00:50]}  Ke8 {[%clk 0:00:03]} 41. c6 {[%clk 0:00:44]}  exf5 {[%clk 0:00:03]} 42. gxf5 {[%clk 0:00:45]}  Ra5 {[%clk 0:00:02]} 43. Bd6 {[%clk 0:00:25]}  Bxd6 {[%clk 0:00:02]} 44. Rxd6 {[%clk 0:00:26]}  Rxf5 {[%clk 0:00:02]} 45. Rxh6 {[%clk 0:00:25]}  Kd8 {[%clk 0:00:01]} 46. b4 {[%clk 0:00:24]}  Kc7 {[%clk 0:00:01]} 47. Kc4 {[%clk 0:00:22]}  Kb6 {[%clk 0:00:02]} 48. Rg6 {[%clk 0:00:17]}  Rf4+ {[%clk 0:00:02]} 49. Kb3 {[%clk 0:00:12]}  Rf2 {[%clk 0:00:02]} 50. Rh6 {[%clk 0:00:10]}  g4 {[%clk 0:00:02]} 51. Kc3 {[%clk 0:00:09]}  Rf3+ {[%clk 0:00:02]} 52. Kc4 {[%clk 0:00:09]}  g3 {[%clk 0:00:02]} 53. hxg3 {[%clk 0:00:09]}  Rxg3 {[%clk 0:00:03]} 54. b5 {[%clk 0:00:06]}  Rg5 {[%clk 0:00:03]} 55. Kd4 {[%clk 0:00:04]}  Rxb5 {[%clk 0:00:03]} 56. c7+ {[%clk 0:00:04]}  Kxc7 {[%clk 0:00:03]} 57. Kc4 {[%clk 0:00:04]}  Rb6 {[%clk 0:00:04]} 58. Rxb6 {[%clk 0:00:04]}  Kxb6 {[%clk 0:00:05]} 1/2-1/2


[Site "https://www.chess.com"]

[Event "Titled Tuesday Blitz January 31 Late 2023"]
[White "Nigmatov, Ortik"]
[Black "Hansen, Eric"]
[WhiteFideId "14202131"]
[BlackFideId "2606771"]
[WhiteElo "2438"]
[BlackElo "2609"]
[Result "0-1"]
[Round "06"]
[TimeControl "180+2"]
[Date "2023.01.31"]
[WhiteClock "0:00:13"]
[BlackClock "0:00:08"]

1. e4 {[%clk 0:03:00]}  c5 {[%clk 0:03:00]} 2. Nf3 {[%clk 0:03:00]}  e6 {[%clk 0:03:00]} 3. d4 {[%clk 0:03:00]}  cxd4 {[%clk 0:03:01]} 4. Nxd4 {[%clk 0:03:01]}  a6 {[%clk 0:03:02]} 5. c4 {[%clk 0:03:01]}  Nf6 {[%clk 0:03:01]} 6. Nc3 {[%clk 0:03:01]}  Qc7 {[%clk 0:03:01]} 7. a3 {[%clk 0:03:01]}  b6 {[%clk 0:03:02]} 8. Be2 {[%clk 0:03:00]}  Bb7 {[%clk 0:03:02]} 9. f3 {[%clk 0:03:01]}  d6 {[%clk 0:03:03]} 10. Be3 {[%clk 0:03:01]}  Nbd7 {[%clk 0:03:03]} 11. O-O {[%clk 0:03:01]}  Be7 {[%clk 0:03:04]} 12. Rc1 {[%clk 0:03:02]}  O-O {[%clk 0:03:04]} 13. b4 {[%clk 0:03:02]}  Rfc8 {[%clk 0:03:05]} 14. Kh1 {[%clk 0:03:02]}  Qd8 {[%clk 0:03:04]} 15. Na4 {[%clk 0:02:59]}  Rab8 {[%clk 0:03:04]} 16. Qd2 {[%clk 0:02:55]}  h5 {[%clk 0:03:03]} 17. Rc2 {[%clk 0:02:55]}  h4 {[%clk 0:03:03]} 18. Rfc1 {[%clk 0:02:51]}  Qf8 {[%clk 0:02:53]} 19. Qe1 {[%clk 0:02:37]}  h3 {[%clk 0:02:51]} 20. g3 {[%clk 0:02:38]}  Qe8 {[%clk 0:02:09]} 21. Bf1 {[%clk 0:02:30]}  Nxe4 {[%clk 0:01:23]} 22. fxe4 {[%clk 0:02:29]}  Bxe4+ {[%clk 0:01:24]} 23. Kg1 {[%clk 0:02:29]}  Bxc2 {[%clk 0:01:25]} 24. Rxc2 {[%clk 0:02:27]}  Ne5 {[%clk 0:01:25]} 25. Nb2 {[%clk 0:02:24]}  b5 {[%clk 0:01:25]} 26. Bxh3 {[%clk 0:02:02]}  bxc4 {[%clk 0:01:23]} 27. Bf4 {[%clk 0:01:57]}  Bf6 {[%clk 0:01:19]} 28. Bg2 {[%clk 0:01:56]}  Nd3 {[%clk 0:01:13]} 29. Qe4 {[%clk 0:01:18]}  d5 {[%clk 0:01:10]} 30. Qe3 {[%clk 0:01:10]}  Bxd4 {[%clk 0:01:05]} 31. Qxd4 {[%clk 0:01:09]}  e5 {[%clk 0:01:05]} 32. Qxd5 {[%clk 0:00:40]}  exf4 {[%clk 0:01:04]} 33. Nxc4 {[%clk 0:00:40]}  Rd8 {[%clk 0:00:52]} 34. Qe4 {[%clk 0:00:34]}  Rbc8 {[%clk 0:00:27]} 35. gxf4 {[%clk 0:00:24]}  Qxe4 {[%clk 0:00:19]} 36. Bxe4 {[%clk 0:00:24]}  Rd4 {[%clk 0:00:10]} 37. Bxd3 {[%clk 0:00:22]}  Rxd3 {[%clk 0:00:11]} 38. Kf1 {[%clk 0:00:10]}  Rd4 {[%clk 0:00:09]} 39. Ne3 {[%clk 0:00:10]}  Rxc2 {[%clk 0:00:08]} 40. Nxc2 {[%clk 0:00:11]}  Rxf4+ {[%clk 0:00:08]} 41. Ke2 {[%clk 0:00:11]}  Rh4 {[%clk 0:00:08]} 42. Kd3 {[%clk 0:00:11]}  Kf8 {[%clk 0:00:09]} 43. a4 {[%clk 0:00:11]}  Ke7 {[%clk 0:00:09]} 44. Nd4 {[%clk 0:00:11]}  Kd7 {[%clk 0:00:09]} 45. Kc4 {[%clk 0:00:09]}  Rxh2 {[%clk 0:00:07]} 46. b5 {[%clk 0:00:10]}  axb5+ {[%clk 0:00:08]} 47. axb5 {[%clk 0:00:11]}  Rh4 {[%clk 0:00:08]} 48. Kd5 {[%clk 0:00:11]}  Rxd4+ {[%clk 0:00:07]} 49. Kxd4 {[%clk 0:00:12]}  Kc7 {[%clk 0:00:08]} 50. Kc5 {[%clk 0:00:12]}  Kb7 {[%clk 0:00:08]} 51. Kd6 {[%clk 0:00:12]}  g5 {[%clk 0:00:08]} 52. Ke5 {[%clk 0:00:12]}  g4 {[%clk 0:00:08]} 53. Kf5 {[%clk 0:00:13]}  g3 {[%clk 0:00:08]} 0-1


[Site "https://www.chess.com"]

[Event "Titled Tuesday Blitz January 31 Late 2023"]
[White "Zhigalko, Sergei"]
[Black "Golding, Alex"]
[WhiteFideId "13502956"]
[BlackFideId "427241"]
[WhiteElo "2572"]
[BlackElo "2318"]
[Result "1-0"]
[Round "06"]
[TimeControl "180+2"]
[Date "2023.01.31"]
[WhiteClock "0:00:22"]
[BlackClock "0:00:02"]

1. e4 {[%clk 0:03:00]}  e5 {[%clk 0:02:49]} 2. Nf3 {[%clk 0:03:00]}  Nc6 {[%clk 0:02:49]} 3. Bc4 {[%clk 0:03:00]}  Bc5 {[%clk 0:02:47]} 4. b4 {[%clk 0:03:00]}  Bxb4 {[%clk 0:02:44]} 5. c3 {[%clk 0:02:59]}  Bd6 {[%clk 0:01:54]} 6. d4 {[%clk 0:02:58]}  Nf6 {[%clk 0:01:50]} 7. O-O {[%clk 0:02:52]}  O-O {[%clk 0:01:49]} 8. Re1 {[%clk 0:02:51]}  h6 {[%clk 0:01:46]} 9. Nbd2 {[%clk 0:02:37]}  Re8 {[%clk 0:00:53]} 10. a4 {[%clk 0:02:29]}  b6 {[%clk 0:00:51]} 11. a5 {[%clk 0:02:00]}  Nxa5 {[%clk 0:00:33]} 12. Rxa5 {[%clk 0:01:55]}  bxa5 {[%clk 0:00:32]} 13. Qb3 {[%clk 0:01:43]}  Re7 {[%clk 0:00:08]} 14. dxe5 {[%clk 0:01:28]}  Bxe5 {[%clk 0:00:09]} 15. Bxf7+ {[%clk 0:01:28]}  Kh8 {[%clk 0:00:09]} 16. Nh4 {[%clk 0:01:23]}  d6 {[%clk 0:00:07]} 17. Ng6+ {[%clk 0:01:18]}  Kh7 {[%clk 0:00:08]} 18. Nf3 {[%clk 0:00:54]}  Bxc3 {[%clk 0:00:06]} 19. Rd1 {[%clk 0:00:53]}  Rxf7 {[%clk 0:00:03]} 20. Qxf7 {[%clk 0:00:53]}  Bg4 {[%clk 0:00:03]} 21. Nf4 {[%clk 0:00:26]}  Bxf3 {[%clk 0:00:03]} 22. Qg6+ {[%clk 0:00:22]}  Kg8 {[%clk 0:00:03]} 23. gxf3 {[%clk 0:00:23]}  Qe8 {[%clk 0:00:04]} 24. Qg2 {[%clk 0:00:23]}  Be5 {[%clk 0:00:04]} 25. Ng6 {[%clk 0:00:24]}  Nd7 {[%clk 0:00:03]} 26. Bxh6 {[%clk 0:00:24]}  Kh7 {[%clk 0:00:02]} 27. Nxe5 {[%clk 0:00:23]}  Nxe5 {[%clk 0:00:02]} 28. Qxg7# {[%clk 0:00:22]} 1-0


[Site "https://www.chess.com"]

[Event "Titled Tuesday Blitz January 31 Late 2023"]
[White "Lizak, Peter"]
[Black "Naroditsky, Daniel"]
[WhiteFideId "731595"]
[BlackFideId "2026961"]
[WhiteElo "2411"]
[BlackElo "2618"]
[Result "0-1"]
[Round "06"]
[TimeControl "180+2"]
[Date "2023.01.31"]
[WhiteClock "0:00:01"]
[BlackClock "0:00:36"]

1. d4 {[%clk 0:03:00]}  Nf6 {[%clk 0:03:00]} 2. Nc3 {[%clk 0:03:01]}  d5 {[%clk 0:03:00]} 3. Bf4 {[%clk 0:03:02]}  a6 {[%clk 0:02:58]} 4. e3 {[%clk 0:03:02]}  b5 {[%clk 0:02:58]} 5. Nf3 {[%clk 0:03:02]}  Bb7 {[%clk 0:02:59]} 6. Bd3 {[%clk 0:03:01]}  e6 {[%clk 0:02:59]} 7. Ne2 {[%clk 0:03:00]}  c5 {[%clk 0:02:55]} 8. c3 {[%clk 0:03:00]}  Nc6 {[%clk 0:02:53]} 9. h3 {[%clk 0:02:56]}  Bd6 {[%clk 0:02:52]} 10. O-O {[%clk 0:02:55]}  O-O {[%clk 0:02:52]} 11. Ne5 {[%clk 0:02:48]}  Bxe5 {[%clk 0:02:42]} 12. Bxe5 {[%clk 0:02:40]}  Nxe5 {[%clk 0:02:42]} 13. dxe5 {[%clk 0:02:41]}  Nd7 {[%clk 0:02:41]} 14. f4 {[%clk 0:02:37]}  f5 {[%clk 0:02:41]} 15. b4 {[%clk 0:02:17]}  Qb6 {[%clk 0:02:35]} 16. Qd2 {[%clk 0:02:14]}  Rac8 {[%clk 0:02:35]} 17. Kh2 {[%clk 0:02:10]}  a5 {[%clk 0:02:18]} 18. bxc5 {[%clk 0:02:04]}  Nxc5 {[%clk 0:02:13]} 19. Nd4 {[%clk 0:01:58]}  Ba6 {[%clk 0:02:08]} 20. Rfc1 {[%clk 0:01:25]}  Nxd3 {[%clk 0:01:37]} 21. Qxd3 {[%clk 0:01:25]}  Rc5 {[%clk 0:01:37]} 22. Qd2 {[%clk 0:01:21]}  Rfc8 {[%clk 0:01:36]} 23. Rab1 {[%clk 0:01:12]}  Rc4 {[%clk 0:01:29]} 24. a3 {[%clk 0:00:53]}  Kf7 {[%clk 0:01:24]} 25. Qe1 {[%clk 0:00:52]}  h6 {[%clk 0:01:01]} 26. g4 {[%clk 0:00:45]}  fxg4 {[%clk 0:00:54]} 27. hxg4 {[%clk 0:00:45]}  Qd8 {[%clk 0:00:49]} 28. Rb2 {[%clk 0:00:32]}  b4 {[%clk 0:00:46]} 29. axb4 {[%clk 0:00:32]}  axb4 {[%clk 0:00:46]} 30. Rxb4 {[%clk 0:00:30]}  Rxb4 {[%clk 0:00:46]} 31. cxb4 {[%clk 0:00:25]}  Rxc1 {[%clk 0:00:47]} 32. Qxc1 {[%clk 0:00:25]}  Qh4+ {[%clk 0:00:48]} 33. Kg2 {[%clk 0:00:23]}  Qxg4+ {[%clk 0:00:49]} 34. Kf2 {[%clk 0:00:22]}  Qh4+ {[%clk 0:00:48]} 35. Kg2 {[%clk 0:00:13]}  Bd3 {[%clk 0:00:42]} 36. Qc7+ {[%clk 0:00:01]}  Kg6 {[%clk 0:00:36]} 0-1


[Site "https://www.chess.com"]

[Event "Titled Tuesday Blitz January 31 Late 2023"]
[White "Averjanov, Alexey"]
[Black "Bok, Benjamin"]
[WhiteFideId "14109867"]
[BlackFideId "1017063"]
[WhiteElo "2399"]
[BlackElo "2607"]
[Result "0-1"]
[Round "06"]
[TimeControl "180+2"]
[Date "2023.01.31"]
[WhiteClock "0:01:05"]
[BlackClock "0:00:04"]

1. d4 {[%clk 0:03:00]}  Nf6 {[%clk 0:02:59]} 2. c4 {[%clk 0:03:00]}  e6 {[%clk 0:03:00]} 3. Nf3 {[%clk 0:03:01]}  d5 {[%clk 0:03:00]} 4. e3 {[%clk 0:03:01]}  Be7 {[%clk 0:02:59]} 5. Nbd2 {[%clk 0:03:01]}  O-O {[%clk 0:02:58]} 6. Bd3 {[%clk 0:03:01]}  b6 {[%clk 0:02:52]} 7. O-O {[%clk 0:03:01]}  Bb7 {[%clk 0:02:52]} 8. Qe2 {[%clk 0:03:01]}  Nbd7 {[%clk 0:02:51]} 9. e4 {[%clk 0:03:02]}  dxc4 {[%clk 0:02:48]} 10. Nxc4 {[%clk 0:03:01]}  c5 {[%clk 0:02:48]} 11. e5 {[%clk 0:02:59]}  Nd5 {[%clk 0:02:45]} 12. Bd2 {[%clk 0:02:56]}  cxd4 {[%clk 0:02:44]} 13. Nxd4 {[%clk 0:02:57]}  Nc5 {[%clk 0:02:37]} 14. Bc2 {[%clk 0:02:57]}  Rc8 {[%clk 0:02:32]} 15. Rad1 {[%clk 0:02:54]}  g6 {[%clk 0:02:31]} 16. Bh6 {[%clk 0:02:54]}  Re8 {[%clk 0:02:30]} 17. Qg4 {[%clk 0:02:52]}  a6 {[%clk 0:02:22]} 18. b4 {[%clk 0:02:50]}  Nd7 {[%clk 0:02:14]} 19. Nxe6 {[%clk 0:02:50]}  Rxc4 {[%clk 0:00:50]} 20. Nxd8 {[%clk 0:02:41]}  Rxg4 {[%clk 0:00:50]} 21. Nxb7 {[%clk 0:02:41]}  Nxb4 {[%clk 0:00:50]} 22. Rxd7 {[%clk 0:02:21]}  Nxc2 {[%clk 0:00:48]} 23. Rfd1 {[%clk 0:02:17]}  Bg5 {[%clk 0:00:14]} 24. h3 {[%clk 0:02:05]}  Rxg2+ {[%clk 0:00:13]} 25. Kxg2 {[%clk 0:02:04]}  Bxh6 {[%clk 0:00:14]} 26. Rd8 {[%clk 0:01:55]}  Kf8 {[%clk 0:00:11]} 27. Rxe8+ {[%clk 0:01:46]}  Kxe8 {[%clk 0:00:12]} 28. Rd8+ {[%clk 0:01:46]}  Ke7 {[%clk 0:00:12]} 29. Rb8 {[%clk 0:01:34]}  Bf4 {[%clk 0:00:10]} 30. Nd8 {[%clk 0:01:33]}  b5 {[%clk 0:00:06]} 31. Nc6+ {[%clk 0:01:29]}  Kd7 {[%clk 0:00:06]} 32. Kf3 {[%clk 0:01:16]}  Bh2 {[%clk 0:00:05]} 33. Nd8 {[%clk 0:01:07]}  Bxe5 {[%clk 0:00:05]} 34. Nxf7 {[%clk 0:01:08]}  Bxb8 {[%clk 0:00:04]} 35. Ng5 {[%clk 0:01:07]}  h6 {[%clk 0:00:04]} 36. Ne4 {[%clk 0:01:06]}  Nb4 {[%clk 0:00:04]} 37. Nc5+ {[%clk 0:01:05]}  Kc6 {[%clk 0:00:04]} 0-1


[Site "https://www.chess.com"]

[Event "Titled Tuesday Blitz January 31 Late 2023"]
[White "Kamsky, Gata"]
[Black "Cardoso Cardoso, Jose Gabriel"]
[WhiteFideId "2000024"]
[BlackFideId "4430492"]
[WhiteElo "2665"]
[BlackElo "2492"]
[Result "1-0"]
[Round "06"]
[TimeControl "180+2"]
[Date "2023.01.31"]
[WhiteClock "0:00:09"]
[BlackClock "0:00:05"]

1. d4 {[%clk 0:03:00]}  g6 {[%clk 0:02:58]} 2. c3 {[%clk 0:02:58]}  d6 {[%clk 0:02:56]} 3. Nf3 {[%clk 0:02:57]}  Nf6 {[%clk 0:02:54]} 4. Bf4 {[%clk 0:02:55]}  Nbd7 {[%clk 0:02:51]} 5. h3 {[%clk 0:02:55]}  Bg7 {[%clk 0:02:51]} 6. Nbd2 {[%clk 0:02:54]}  c5 {[%clk 0:02:48]} 7. e3 {[%clk 0:02:52]}  b6 {[%clk 0:02:47]} 8. Bd3 {[%clk 0:02:48]}  Bb7 {[%clk 0:02:45]} 9. O-O {[%clk 0:02:47]}  O-O {[%clk 0:02:44]} 10. e4 {[%clk 0:02:44]}  e5 {[%clk 0:02:16]} 11. dxe5 {[%clk 0:02:41]}  Nxe5 {[%clk 0:02:14]} 12. Bxe5 {[%clk 0:02:41]}  dxe5 {[%clk 0:02:13]} 13. Qc2 {[%clk 0:02:22]}  Qc7 {[%clk 0:02:11]} 14. a4 {[%clk 0:02:20]}  a6 {[%clk 0:01:35]} 15. Rfe1 {[%clk 0:02:14]}  Rad8 {[%clk 0:01:33]} 16. Bf1 {[%clk 0:02:11]}  Rfe8 {[%clk 0:01:18]} 17. Qb3 {[%clk 0:01:55]}  Rb8 {[%clk 0:01:02]} 18. Qc2 {[%clk 0:01:43]}  Bc8 {[%clk 0:00:49]} 19. c4 {[%clk 0:01:20]}  Bb7 {[%clk 0:00:44]} 20. Nb1 {[%clk 0:01:17]}  Nh5 {[%clk 0:00:37]} 21. Nc3 {[%clk 0:01:17]}  Nf4 {[%clk 0:00:34]} 22. Nd5 {[%clk 0:01:16]}  Qc6 {[%clk 0:00:25]} 23. a5 {[%clk 0:01:12]}  bxa5 {[%clk 0:00:24]} 24. Rxa5 {[%clk 0:01:07]}  Ne6 {[%clk 0:00:21]} 25. Rea1 {[%clk 0:01:02]}  Qd6 {[%clk 0:00:20]} 26. Rd1 {[%clk 0:00:58]}  Nd4 {[%clk 0:00:20]} 27. Nxd4 {[%clk 0:00:58]}  exd4 {[%clk 0:00:19]} 28. Bd3 {[%clk 0:00:55]}  h5 {[%clk 0:00:16]} 29. Qd2 {[%clk 0:00:35]}  h4 {[%clk 0:00:14]} 30. Raa1 {[%clk 0:00:30]}  Re6 {[%clk 0:00:10]} 31. b3 {[%clk 0:00:29]}  Ree8 {[%clk 0:00:09]} 32. Qg5 {[%clk 0:00:28]}  Bxd5 {[%clk 0:00:09]} 33. cxd5 {[%clk 0:00:28]}  Rxb3 {[%clk 0:00:09]} 34. Qxh4 {[%clk 0:00:26]}  Rc3 {[%clk 0:00:06]} 35. Rxa6 {[%clk 0:00:24]}  Qb8 {[%clk 0:00:06]} 36. Bf1 {[%clk 0:00:20]}  c4 {[%clk 0:00:06]} 37. d6 {[%clk 0:00:20]}  d3 {[%clk 0:00:06]} 38. d7 {[%clk 0:00:18]}  Rf8 {[%clk 0:00:06]} 39. Qe7 {[%clk 0:00:16]}  Qd8 {[%clk 0:00:06]} 40. Qd6 {[%clk 0:00:15]}  Rc2 {[%clk 0:00:04]} 41. Rc6 {[%clk 0:00:15]}  Qh4 {[%clk 0:00:03]} 42. g3 {[%clk 0:00:13]}  Qd8 {[%clk 0:00:02]} 43. Bxd3 {[%clk 0:00:11]}  cxd3 {[%clk 0:00:02]} 44. Rxd3 {[%clk 0:00:12]}  Rxc6 {[%clk 0:00:02]} 45. Qxc6 {[%clk 0:00:12]}  Bf6 {[%clk 0:00:02]} 46. Kg2 {[%clk 0:00:13]}  Be7 {[%clk 0:00:03]} 47. h4 {[%clk 0:00:13]}  Qb8 {[%clk 0:00:03]} 48. Qd5 {[%clk 0:00:13]}  Rd8 {[%clk 0:00:03]} 49. Rf3 {[%clk 0:00:13]}  Rf8 {[%clk 0:00:02]} 50. h5 {[%clk 0:00:13]}  gxh5 {[%clk 0:00:02]} 51. Qxh5 {[%clk 0:00:13]}  Qb6 {[%clk 0:00:03]} 52. Rf4 {[%clk 0:00:12]}  Bf6 {[%clk 0:00:02]} 53. Rg4+ {[%clk 0:00:12]}  Bg7 {[%clk 0:00:03]} 54. Qg5 {[%clk 0:00:12]}  Qg6 {[%clk 0:00:01]} 55. Qxg6 {[%clk 0:00:12]}  fxg6 {[%clk 0:00:02]} 56. Rxg6 {[%clk 0:00:13]}  Rd8 {[%clk 0:00:02]} 57. Rd6 {[%clk 0:00:13]}  Kf7 {[%clk 0:00:03]} 58. f4 {[%clk 0:00:13]}  Ke7 {[%clk 0:00:04]} 59. e5 {[%clk 0:00:13]}  Rb8 {[%clk 0:00:03]} 60. Kf3 {[%clk 0:00:12]}  Kd8 {[%clk 0:00:03]} 61. g4 {[%clk 0:00:11]}  Rb7 {[%clk 0:00:04]} 62. Ke4 {[%clk 0:00:11]}  Rxd7 {[%clk 0:00:03]} 63. Rxd7+ {[%clk 0:00:11]}  Kxd7 {[%clk 0:00:04]} 64. Kf5 {[%clk 0:00:11]}  Ke8 {[%clk 0:00:03]} 65. Kg6 {[%clk 0:00:10]}  Bf8 {[%clk 0:00:04]} 66. Kf6 {[%clk 0:00:09]}  Bb4 {[%clk 0:00:04]} 67. f5 {[%clk 0:00:09]}  Bc3 {[%clk 0:00:04]} 68. g5 {[%clk 0:00:09]}  Kf8 {[%clk 0:00:04]} 69. g6 {[%clk 0:00:08]}  Bb2 {[%clk 0:00:05]} 70. Ke6 {[%clk 0:00:08]}  Bd4 {[%clk 0:00:04]} 71. f6 {[%clk 0:00:08]}  Bb2 {[%clk 0:00:04]} 72. Kf5 {[%clk 0:00:08]}  Ba3 {[%clk 0:00:04]} 73. e6 {[%clk 0:00:09]}  Bb2 {[%clk 0:00:03]} 74. g7+ {[%clk 0:00:08]}  Kg8 {[%clk 0:00:03]} 75. Kg6 {[%clk 0:00:08]}  Bxf6 {[%clk 0:00:02]} 76. Kxf6 {[%clk 0:00:09]}  Kh7 {[%clk 0:00:02]} 77. Kf7 {[%clk 0:00:09]}  Kh6 {[%clk 0:00:03]} 78. g8=Q {[%clk 0:00:09]}  Kh5 {[%clk 0:00:04]} 79. Qg3 {[%clk 0:00:09]}  Kh6 {[%clk 0:00:05]} 80. e7 {[%clk 0:00:09]} 1-0


[Site "https://www.chess.com"]